fUSD/lending_fUSD_20250620
["ID","MTS","AMOUNT","RATE_DAILY","PERIOD"]
[366707499,1750415589010,-1190.82,0.00027933,4]
[366707500,1750415589020,-712.91,0.00027933,4]
[366707501,1750415589030,-1879.2,0.00027933,4]
[366707502,1750415589040,-490.0,0.00027933,4]
[366707503,1750415589049,-3348.43,0.00027933,4]
[366707504,1750415589059,-2145.92,0.00027933,4]
[366707505,1750415589069,-3119.56,0.00027933,4]
[366707506,1750415589078,-3273.4,0.00027933,4]
[366707507,1750415589088,-490.0,0.00027935,4]
[366707508,1750415589097,-490.0,0.00027935,4]
[366707509,1750415589107,-490.0,0.00027935,4]
[366707510,1750415589116,-490.0,0.00027935,4]
[366707511,1750415589126,-490.0,0.00027935,4]
[366707512,1750415589135,-1480.37,0.00027935,4]
[366707513,1750415589144,-182.63532866,0.00027935,4]
[366707514,1750415589154,-490.0,0.00027935,4]
[366707515,1750415589164,-1643.1,0.00027935,4]
[366707516,1750415589173,-565.51,0.00027935,4]
[366707517,1750415589183,-492.45,0.00027935,4]
[366707518,1750415589192,-2032.33,0.00027935,4]
[366707519,1750415589202,-880.4,0.00027935,4]
[366707520,1750415589211,-490.0,0.00027935,4]
[366707521,1750415589220,-1088.85,0.00027935,4]
[366707522,1750415589229,-442.36310393,0.00027935,4]
[366707523,1750415589239,-848.08,0.00027935,4]
[366707524,1750415589249,-912.78,0.00027935,4]
[366707525,1750415589259,-1634.09,0.00027935,4]
[366707526,1750415589269,-1838.84,0.00027935,4]
[366707527,1750415589279,-895.29,0.00027935,4]
[366707528,1750415589289,-818.8,0.00027935,4]
[366707529,1750415589298,-669.38,0.00027935,4]
[366707530,1750415589308,-490.0,0.00027935,4]
[366707531,1750415589318,-1627.01,0.00027935,4]
[366707532,1750415589328,-490.0,0.00027935,4]
[366707533,1750415589338,-490.0,0.00027935,4]
[366707534,1750415589347,-490.0,0.00027935,4]
[366707535,1750415589357,-1078.58,0.00027935,4]
[366707536,1750415589367,-994.67,0.00027935,4]
[366707537,1750415589531,-771.65,0.00027935,4]
[366707538,1750415589542,-490.0,0.00027935,4]
[366707539,1750415589554,-694.41,0.00027935,4]
[366707540,1750415589564,-679.99,0.00027935,4]
[366707541,1750415589574,-490.0,0.00027935,4]
[366707542,1750415589584,-2362.55,0.00027935,4]
[366707543,1750415589595,-490.0,0.00027935,4]
[366707544,1750415589605,-490.0,0.00027935,4]
[366707545,1750415589615,-490.0,0.00027935,4]
[366707546,1750415589625,-592.8,0.00027935,4]
[366707547,1750415589635,-490.0,0.00027935,4]
[366707548,1750415589646,-490.0,0.00027935,4]
[366707549,1750415589656,-542.79,0.00027935,4]
[366707550,1750415589666,-1385.22,0.00027935,4]
[366707551,1750415589677,-1591.3,0.00027935,4]
[366707552,1750415589687,-490.0,0.00027935,4]
[366707553,1750415589698,-1073.69,0.00027935,4]
[366707554,1750415589708,-490.0,0.00027935,4]
[366707555,1750415589720,-616.36,0.00027935,4]
[366707556,1750415589730,-490.0,0.00027935,4]
[366707557,1750415589740,-490.0,0.00027935,4]
[366707558,1750415589750,-490.0,0.00027935,4]
[366707559,1750415589760,-583.29,0.00027935,4]
[366707560,1750415589771,-1175.68,0.00027935,4]
[366707561,1750415589782,-1312.24,0.00027935,4]
[366707562,1750415589792,-1363.77,0.00027935,4]
[366707563,1750415589802,-490.0,0.00027935,4]
[366707564,1750415589813,-770.8,0.00027935,4]
[366707565,1750415589823,-997.01,0.00027935,4]
[366707566,1750415589833,-989.39,0.00027935,4]
[366707567,1750415589844,-567.86,0.00027935,4]
[366707568,1750415589855,-1096.04,0.00027935,4]
[366707569,1750415589865,-1520.45,0.00027935,4]
[366707570,1750415589874,-490.0,0.00027935,4]
[366707571,1750415589885,-805.39,0.00027935,4]
[366707572,1750415589895,-490.0,0.00027935,4]
[366707573,1750415589905,-490.0,0.00027935,4]
[366707574,1750415589916,-1428.58,0.00027935,4]
[366707575,1750415589927,-596.59,0.00027935,4]
[366707576,1750415589938,-490.0,0.00027935,4]
[366707577,1750415589948,-5382.53,0.00027935,4]
[366707578,1750415589958,-490.0,0.00027935,4]
[366707579,1750415589969,-703.96,0.00027935,4]
[366707580,1750415589979,-1669.54,0.00027935,4]
[366707581,1750415589989,-1601.56,0.00027935,4]
[366707582,1750415590000,-2721.61,0.00027935,4]
[366707583,1750415590011,-490.0,0.00027935,4]
[366707584,1750415590021,-741.54,0.00027935,4]
[366707585,1750415590031,-669.76,0.00027935,4]
[366707586,1750415590041,-1225.01,0.00027935,4]
[366707587,1750415590052,-2422.36,0.00027935,4]
[366707588,1750415590063,-1005.68,0.00027935,4]
[366707589,1750415590073,-490.0,0.00027935,4]
[366707590,1750415590084,-2138.59,0.00027935,4]
[366707591,1750415590094,-490.0,0.00027935,4]
[366707592,1750415590105,-998.16,0.00027935,4]
[366707593,1750415590117,-4396.87,0.00027935,4]
[366707594,1750415590127,-933.76,0.00027935,4]
[366707595,1750415590137,-897.22,0.00027935,4]
[366707596,1750415590147,-1489.74,0.00027935,4]
[366707597,1750415590157,-2632.99,0.00027935,4]
[366707598,1750415590167,-490.0,0.00027935,4]
[366707599,1750415590177,-2115.45,0.00027935,4]
[366707600,1750415590189,-969.59,0.00027935,4]
[366707601,1750415590200,-1788.12,0.00027935,4]
[366707602,1750415590210,-587.84,0.00027935,4]
[366707603,1750415590220,-490.0,0.00027935,4]
[366707604,1750415590231,-747.47,0.00027935,4]
[366707605,1750415590241,-629.05,0.00027935,4]
[366707606,1750415590251,-1158.39,0.00027935,4]
[366707607,1750415590262,-4900.18,0.00027935,4]
[366707608,1750415590271,-490.0,0.00027935,4]
[366707609,1750415590282,-1552.28,0.00027935,4]
[366707610,1750415590292,-540.28,0.00027935,4]
[366707611,1750415590303,-1986.49,0.00027935,4]
[366707612,1750415590312,-2142.56,0.00027935,4]
[366707613,1750415590322,-675.46,0.00027935,4]
[366707614,1750415590332,-2131.24,0.00027935,4]
[366707615,1750415590342,-1335.47,0.00027935,4]
[366707616,1750415590352,-894.67,0.00027935,4]
[366707617,1750415590362,-3901.98,0.00027935,4]
[366707618,1750415590372,-694.78,0.00027935,4]
[366707619,1750415590381,-748.02,0.00027935,4]
[366707620,1750415590391,-2210.45,0.00027935,4]
[366707621,1750415590402,-1823.65,0.00027935,4]
[366707622,1750415590411,-1839.21,0.00027935,4]
[366707623,1750415590422,-951.3,0.00027935,4]
[366707624,1750415590432,-490.0,0.00027935,4]
[366707625,1750415590442,-828.87,0.00027935,4]
[366707626,1750415590452,-828.66,0.00027935,4]
[366707627,1750415590462,-2336.71,0.00027935,4]
[366707628,1750415590473,-490.0,0.00027935,4]
[366707629,1750415590483,-1193.56,0.00027935,4]
[366707630,1750415590494,-1201.91,0.00027935,4]
[366707631,1750415590504,-1533.32,0.00027935,4]
[366707632,1750415590515,-2402.13,0.00027935,4]
[366707633,1750415590525,-2054.14,0.00027935,4]
[366707634,1750415590535,-600.0,0.0002794,4]
[366707635,1750415590544,-490.0,0.00027945,4]
[366707636,1750415590555,-490.0,0.00027945,4]
[366707637,1750415590565,-490.0,0.00027945,4]
[366707638,1750415590575,-490.0,0.00027945,4]
[366707639,1750415590585,-490.0,0.00027945,4]
[366707640,1750415590595,-490.0,0.00027945,4]
[366707641,1750415590605,-490.0,0.00027945,4]
[366707642,1750415590615,-490.0,0.00027945,4]
[366707643,1750415590625,-490.0,0.00027945,4]
[366707644,1750415590635,-490.0,0.00027945,4]
[366707645,1750415590645,-536.23,0.00027945,4]
[366707646,1750415590655,-490.0,0.00027945,4]
[366707647,1750415590665,-686.65,0.00027945,4]
[366707648,1750415590675,-490.0,0.00027945,4]
[366707649,1750415590685,-897.84,0.00027945,4]
[366707650,1750415590695,-793.14,0.00027945,4]
[366707651,1750415590705,-656.19,0.00027945,4]
[366707652,1750415590715,-490.0,0.00027945,4]
[366707653,1750415590726,-624.06,0.00027945,4]
[366707654,1750415590737,-490.0,0.00027945,4]
[366707655,1750415590747,-568.83,0.00027945,4]
[366707656,1750415590758,-402.69,0.00027945,4]
[366707657,1750415590767,-490.0,0.00027945,4]
[366707658,1750415590777,-362.21851296,0.00027945,4]
[366707659,1750415590787,-697.89,0.00027945,4]
[366707660,1750415590797,-490.0,0.00027945,4]
[366707661,1750415590807,-490.0,0.00027945,4]
[366707662,1750415590817,-724.36,0.00027945,4]
[366707663,1750415590827,-490.0,0.00027945,4]
[366707664,1750415590837,-490.0,0.00027945,4]
[366707665,1750415590847,-490.0,0.00027945,4]
[366707666,1750415590856,-1029.22,0.00027945,4]
[366707667,1750415590866,-490.0,0.00027945,4]
[366707668,1750415590876,-490.0,0.00027945,4]
[366707669,1750415590885,-490.0,0.00027945,4]
[366707670,1750415590894,-490.0,0.00027945,4]
[366707671,1750415590904,-490.0,0.00027945,4]
[366707672,1750415590914,-490.0,0.00027945,4]
[366707673,1750415590924,-511.15577655,0.00027945,4]
[366707674,1750415590934,-490.0,0.00027945,4]
[366707675,1750415590943,-490.0,0.00027945,4]
[366707676,1750415590954,-286.11356536,0.00027945,4]
[366707677,1750415590965,-817.57,0.00027945,4]
[366707678,1750415590975,-490.0,0.00027945,4]
[366707679,1750415590985,-490.0,0.00027945,4]
[366707680,1750415590994,-490.0,0.00027945,4]
[366707681,1750415591004,-860.55,0.00027945,4]
[366707682,1750415591014,-495.8433671,0.00027945,4]
[366707683,1750415591024,-490.0,0.00027945,4]
[366707684,1750415591034,-490.0,0.00027945,4]
[366707685,1750415591044,-490.0,0.00027945,4]
[366707686,1750415591055,-490.0,0.00027945,4]
[366707687,1750415591065,-490.0,0.00027945,4]
[366707688,1750415591075,-490.0,0.00027945,4]
[366707689,1750415591086,-490.0,0.00027945,4]
[366707690,1750415591097,-490.0,0.00027945,4]
[366707691,1750415591107,-490.0,0.00027945,4]
[366707692,1750415591117,-490.0,0.00027945,4]
[366707693,1750415591128,-490.0,0.00027945,4]
[366707694,1750415591137,-490.0,0.00027945,4]
[366707695,1750415591147,-650.85,0.00027945,4]
[366707696,1750415591157,-490.0,0.00027945,4]
[366707697,1750415591167,-490.0,0.00027945,4]
[366707698,1750415591179,-291.61285542,0.00027945,4]
[366707699,1750415591198,-666.55,0.00027945,4]
[366707700,1750415591208,-490.0,0.00027945,4]
[366707701,1750415591219,-490.0,0.00027945,4]
[366707702,1750415591229,-490.0,0.00027945,4]
[366707703,1750415591241,-633.7019825,0.00027945,4]
[366707704,1750415591251,-490.0,0.00027945,4]
[366707705,1750415591261,-490.0,0.00027945,4]
[366707706,1750415591271,-490.0,0.00027945,4]
[366707707,1750415591281,-490.0,0.00027945,4]
[366707708,1750415591291,-490.0,0.00027945,4]
[366707709,1750415591302,-490.0,0.00027945,4]
[366707710,1750415591311,-490.0,0.00027945,4]
[366707711,1750415591322,-497.02,0.00027945,4]
[366707712,1750415591331,-490.0,0.00027945,4]
[366707713,1750415591341,-490.0,0.00027945,4]
[366707714,1750415591351,-561.45,0.00027945,4]
[366707715,1750415591361,-490.0,0.00027945,4]
[366707716,1750415591371,-490.0,0.00027945,4]
[366707717,1750415591382,-490.0,0.00027945,4]
[366707718,1750415591392,-490.0,0.00027945,4]
[366707719,1750415591402,-490.0,0.00027945,4]
[366707720,1750415591412,-673.68,0.00027945,4]
[366707721,1750415591422,-490.0,0.00027945,4]
[366707722,1750415591432,-490.0,0.00027945,4]
[366707723,1750415591443,-798.5,0.00027945,4]
[366707724,1750415591454,-490.0,0.00027945,4]
[366707725,1750415591464,-490.0,0.00027945,4]
[366707726,1750415591475,-490.0,0.00027945,4]
[366707727,1750415591485,-490.0,0.00027945,4]
[366707728,1750415591495,-814.97,0.00027945,4]
[366707729,1750415591508,-490.0,0.00027945,4]
[366707730,1750415591518,-2237.34,0.00027945,4]
[366707731,1750415591529,-490.0,0.00027945,4]
[366707732,1750415591540,-997.34,0.00027945,4]
[366707733,1750415591550,-792.52,0.00027945,4]
[366707734,1750415591560,-490.0,0.00027945,4]
[366707735,1750415591571,-490.0,0.00027945,4]
[366707736,1750415591581,-490.0,0.00027945,4]
[366707737,1750415591592,-749.65,0.00027945,4]
[366707738,1750415591602,-490.0,0.00027945,4]
[366707739,1750415591611,-490.0,0.00027945,4]
[366707740,1750415591620,-490.0,0.00027945,4]
[366707741,1750415591630,-870.19,0.00027945,4]
[366707742,1750415591640,-661.75,0.00027945,4]
[366707743,1750415591650,-490.0,0.00027945,4]
[366707744,1750415591660,-508.02,0.00027945,4]
[366707745,1750415591670,-490.0,0.00027945,4]
[366707746,1750415591679,-490.0,0.00027945,4]
[366707747,1750415591689,-1294.95,0.00027945,4]
[366707748,1750415591698,-490.0,0.00027945,4]
[366707749,1750415591708,-490.0,0.00027945,4]
[366707750,1750415591717,-490.0,0.00027945,4]
[366707751,1750415591727,-860.83,0.00027945,4]
[366707752,1750415591738,-490.0,0.00027945,4]
[366707753,1750415591748,-686.43,0.00027945,4]
[366707754,1750415591759,-1554.68,0.00027945,4]
[366707755,1750415591769,-490.0,0.00027945,4]
[366707756,1750415591779,-490.0,0.00027945,4]
[366707757,1750415592156,-490.0,0.00027945,4]
[366707758,1750415592172,-490.0,0.00027945,4]
[366707759,1750415592183,-490.0,0.00027945,4]
[366707760,1750415592198,-620.11,0.00027945,4]
[366707761,1750415592207,-497.74660224,0.00027945,4]
[366707762,1750415592217,-490.0,0.00027945,4]
[366707763,1750415592227,-591.54,0.00027945,4]
[366707764,1750415592237,-757.27,0.00027945,4]
[366707765,1750415592247,-1692.44,0.00027945,4]
[366707766,1750415592258,-490.0,0.00027945,4]
[366707767,1750415592268,-490.0,0.00027945,4]
[366707768,1750415592278,-1478.21,0.00027945,4]
[366707769,1750415592289,-490.0,0.00027945,4]
[366707770,1750415592298,-1664.77,0.00027945,4]
[366707771,1750415592308,-490.0,0.00027945,4]
[366707772,1750415592318,-513.53,0.00027945,4]
[366707773,1750415592329,-1643.07,0.00027945,4]
[366707774,1750415592339,-2421.62,0.00027945,4]
[366707775,1750415592349,-490.0,0.00027945,4]
[366707776,1750415592360,-1002.75,0.00027945,4]
[366707777,1750415592370,-1171.85,0.00027945,4]
[366707778,1750415592380,-490.0,0.00027945,4]
[366707779,1750415592390,-490.0,0.00027945,4]
[366707780,1750415592400,-490.0,0.00027945,4]
[366707781,1750415592411,-490.0,0.00027945,4]
[366707782,1750415592420,-490.0,0.00027945,4]
[366707783,1750415592430,-490.0,0.00027945,4]
[366707784,1750415592440,-490.0,0.00027945,4]
[366707785,1750415592449,-513.94,0.00027945,4]
[366707786,1750415592460,-1052.23,0.00027945,4]
[366707787,1750415592471,-1203.58,0.00027945,4]
[366707788,1750415592481,-1052.12,0.00027945,4]
[366707789,1750415592491,-490.0,0.00027945,4]
[366707790,1750415592500,-1116.54,0.00027945,4]
[366707791,1750415592510,-490.0,0.00027945,4]
[366707792,1750415592521,-490.0,0.00027945,4]
[366707793,1750415592531,-593.05,0.00027945,4]
[366707794,1750415592542,-490.0,0.00027945,4]
[366707795,1750415592553,-713.86,0.00027945,4]
[366707796,1750415592563,-576.72,0.00027945,4]
[366707797,1750415592573,-1207.78,0.00027945,4]
[366707798,1750415592583,-490.0,0.00027945,4]
[366707799,1750415592593,-490.0,0.00027945,4]
[366707800,1750415592605,-885.97,0.00027945,4]
[366707801,1750415592615,-1286.94,0.00027945,4]
[366707802,1750415592626,-774.59,0.00027945,4]
[366707803,1750415592637,-663.64,0.00027945,4]
[366707804,1750415592648,-490.0,0.00027945,4]
[366707805,1750415592658,-689.38,0.00027945,4]
[366707806,1750415592668,-556.07,0.00027945,4]
[366707807,1750415592678,-490.0,0.00027945,4]
[366707808,1750415592689,-490.0,0.00027945,4]
[366707809,1750415592699,-929.62,0.00027945,4]
[366707810,1750415592709,-852.86,0.00027945,4]
[366707811,1750415592720,-540.11,0.00027945,4]
[366707812,1750415592730,-490.0,0.00027945,4]
[366707813,1750415592739,-490.0,0.00027945,4]
[366707814,1750415592750,-549.5,0.00027945,4]
[366707815,1750415592767,-490.0,0.00027945,4]
[366707816,1750415592780,-719.33,0.00027945,4]
[366707817,1750415592791,-261.5231062,0.00027945,4]
[366707818,1750415592801,-490.0,0.00027945,4]
[366707819,1750415592811,-490.0,0.00027945,4]
[366707820,1750415592821,-1178.9,0.00027945,4]
[366707821,1750415592831,-992.43,0.00027945,4]
[366707822,1750415592841,-490.0,0.00027945,4]
[366707823,1750415592852,-2120.13,0.00027945,4]
[366707824,1750415592862,-490.0,0.00027945,4]
[366707825,1750415592872,-490.0,0.00027945,4]
[366707826,1750415592882,-797.21,0.00027945,4]
[366707827,1750415592892,-2831.45,0.00027945,4]
[366707828,1750415592903,-490.0,0.00027945,4]
[366707829,1750415592912,-1657.46,0.00027945,4]
[366707830,1750415592922,-1176.63,0.00027945,4]
[366707831,1750415592932,-835.13,0.00027945,4]
[366707832,1750415592943,-640.77,0.00027945,4]
[366707833,1750415592954,-516.49404047,0.00027945,4]
[366707834,1750415592964,-955.18,0.00027945,4]
[366707835,1750415592974,-759.69,0.00027945,4]
[366707836,1750415592984,-495.19,0.00027945,4]
[366707837,1750415592994,-1620.75,0.00027945,4]
[366707838,1750415593004,-2608.35,0.00027945,4]
[366707839,1750415593014,-1487.07,0.00027945,4]
[366707840,1750415593024,-490.0,0.00027945,4]
[366707841,1750415593035,-620.7,0.00027945,4]
[366707842,1750415593046,-2196.02,0.00027945,4]
[366707843,1750415593056,-490.0,0.00027945,4]
[366707844,1750415593066,-490.0,0.00027945,4]
[366707845,1750415593078,-2048.55,0.00027945,4]
[366707846,1750415593094,-1452.89,0.00027945,4]
[366707847,1750415593104,-676.1,0.00027945,4]
[366707848,1750415593114,-490.0,0.00027945,4]
[366707849,1750415593124,-3078.01,0.00027945,4]
[366707850,1750415593134,-729.0,0.00027945,4]
[366707851,1750415593145,-457.77685325,0.00027945,4]
[366707852,1750415593155,-646.89,0.00027945,4]
[366707853,1750415593165,-490.0,0.00027945,4]
[366707854,1750415593175,-692.86,0.00027945,4]
[366707855,1750415593185,-1111.1,0.00027945,4]
[366707856,1750415593196,-726.03,0.00027945,4]
[366707857,1750415593209,-896.01,0.00027945,4]
[366707858,1750415593220,-522.54,0.00027945,4]
[366707859,1750415593233,-817.65,0.00027945,4]
[366707860,1750415593243,-1212.05,0.00027945,4]
[366707861,1750415593253,-490.0,0.00027945,4]
[366707862,1750415593264,-490.0,0.00027945,4]
[366707863,1750415593274,-1510.44,0.00027945,4]
[366707864,1750415593284,-490.0,0.00027945,4]
[366707865,1750415593295,-563.12,0.00027945,4]
[366707866,1750415593306,-17404.6,0.00027945,4]
[366707867,1750415593316,-490.0,0.00027945,4]
[366707868,1750415593326,-516.42,0.00027945,4]
[366707869,1750415593337,-1966.77,0.00027945,4]
[366707870,1750415593348,-499.64,0.00027945,4]
[366707871,1750415593358,-682.61,0.00027945,4]
[366707872,1750415593367,-496.54,0.00027945,4]
[366707873,1750415593378,-1292.76,0.00027945,4]
[366707874,1750415593388,-490.0,0.00027945,4]
[366707875,1750415593398,-532.96,0.00027945,4]
[366707876,1750415593408,-490.0,0.00027945,4]
[366707877,1750415593418,-490.0,0.00027945,4]
[366707878,1750415593428,-490.0,0.00027945,4]
[366707879,1750415593438,-3089.65,0.00027945,4]
[366707880,1750415593448,-490.0,0.00027945,4]
[366707881,1750415593458,-490.0,0.00027945,4]
[366707882,1750415593469,-1110.49,0.00027945,4]
[366707883,1750415593480,-875.85,0.00027945,4]
[366707884,1750415593490,-808.72,0.00027945,4]
[366707885,1750415593504,-490.0,0.00027945,4]
[366707886,1750415593517,-490.0,0.00027945,4]
[366707887,1750415593527,-490.0,0.00027945,4]
[366707888,1750415593537,-548.1,0.00027945,4]
[366707889,1750415593547,-490.0,0.00027945,4]
[366707890,1750415593557,-1116.64,0.00027945,4]
[366707891,1750415593567,-574.73662663,0.00027945,4]
[366707892,1750415593577,-741.55,0.00027945,4]
[366707893,1750415593586,-490.0,0.00027945,4]
[366707894,1750415593596,-490.0,0.00027945,4]
[366707895,1750415593606,-900.32,0.00027945,4]
[366707896,1750415593618,-3388.66,0.00027945,4]
[366707897,1750415593630,-490.0,0.00027945,4]
[366707898,1750415593642,-490.0,0.00027945,4]
[366707899,1750415593654,-1386.85,0.00027945,4]
[366707900,1750415593663,-153.9242632,0.00027945,4]
[366707901,1750415593673,-2512.9,0.00027945,4]
[366707902,1750415593683,-490.0,0.00027945,4]
[366707903,1750415593692,-613.06,0.00027945,4]
[366707904,1750415593702,-7527.62,0.00027945,4]
[366707905,1750415593713,-7882.79,0.00027945,4]
[366707906,1750415593723,-1533.1,0.00027945,4]
[366707907,1750415593733,-741.74,0.00027945,4]
[366707908,1750415593743,-557.61,0.00027945,4]
[366707909,1750415593752,-2444.05,0.00027945,4]
[366707910,1750415593762,-1074.56,0.00027945,4]
[366707911,1750415593772,-490.0,0.00027945,4]
[366707912,1750415593782,-716.85,0.00027945,4]
[366707913,1750415593792,-3776.02,0.00027945,4]
[366707914,1750415593802,-600.0,0.00027945,120]
[366707915,1750415593812,-490.0,0.00027945,4]
[366707916,1750415593824,-759.29,0.00027945,4]
[366707917,1750415593835,-508.46,0.00027945,4]
[366707918,1750415593848,-490.0,0.00027945,4]
[366707919,1750415593858,-5317.42,0.00027945,4]
[366707920,1750415593868,-490.0,0.00027945,4]
[366707921,1750415593878,-490.0,0.00027945,4]
[366707922,1750415593888,-1702.18,0.00027945,4]
[366707923,1750415593897,-1502.12,0.00027945,4]
[366707924,1750415593908,-490.0,0.00027945,4]
[366707925,1750415593918,-9880.35,0.00027945,4]
[366707926,1750415593927,-670.44,0.00027945,4]
[366707927,1750415593937,-2012.16,0.00027945,4]
[366707928,1750415593947,-1936.5,0.00027945,4]
[366707929,1750415593957,-6404.69,0.00027945,4]
[366707930,1750415593967,-490.0,0.00027945,4]
[366707931,1750415593977,-490.0,0.00027945,4]
[366707932,1750415593987,-490.0,0.00027945,4]
[366707933,1750415593997,-2380.6,0.00027945,4]
[366707934,1750415594009,-1141.27,0.00027945,4]
[366707935,1750415594021,-510.99,0.00027945,4]
[366707936,1750415594032,-691.59,0.00027945,4]
[366707937,1750415594042,-490.0,0.00027945,4]
[366707938,1750415594053,-490.0,0.00027945,4]
[366707939,1750415594063,-490.0,0.00027945,4]
[366707940,1750415594073,-2450.17,0.00027945,4]
[366707941,1750415594082,-1844.2,0.00027945,4]
[366707942,1750415594092,-490.0,0.00027945,4]
[366707943,1750415594102,-622.58,0.00027945,4]
[366707944,1750415594113,-490.0,0.00027945,4]
[366707945,1750415594123,-490.0,0.00027945,4]
[366707946,1750415594132,-1419.42,0.00027945,4]
[366707947,1750415594143,-17540.73,0.00027945,4]
[366707948,1750415594154,-1227.01,0.00027945,4]
[366707949,1750415594164,-490.0,0.00027945,4]
[366707950,1750415594174,-490.0,0.00027945,4]
[366707951,1750415594184,-490.0,0.00027945,4]
[366707952,1750415594196,-490.0,0.00027945,4]
[366707953,1750415594206,-490.0,0.00027945,4]
[366707954,1750415594218,-5948.54,0.00027945,4]
[366707955,1750415594229,-957.68,0.00027945,4]
[366707956,1750415594240,-295.56989663,0.00027945,4]
[366707957,1750415594251,-5372.22,0.00027945,4]
[366707958,1750415594261,-490.0,0.00027945,4]
[366707959,1750415594270,-1499.27,0.00027945,4]
[366707960,1750415594281,-1594.4,0.00027945,4]
[366707961,1750415594291,-490.0,0.00027945,4]
[366707962,1750415594301,-1525.88,0.00027945,4]
[366707963,1750415594310,-18649.49,0.00027945,4]
[366707964,1750415594320,-490.0,0.00027945,4]
[366707965,1750415594330,-662.4,0.00027945,4]
[366707966,1750415594339,-11431.71,0.00027945,4]
[366707967,1750415594350,-574.02,0.00027945,4]
[366707968,1750415594360,-496.93049936,0.00027945,4]
[366707969,1750415594371,-490.0,0.00027945,4]
[366707970,1750415594382,-2766.75,0.00027945,4]
[366707971,1750415594392,-1747.3,0.00027945,4]
[366707972,1750415594402,-490.0,0.00027945,4]
[366707973,1750415594413,-490.0,0.00027945,4]
[366707974,1750415594425,-521.31,0.00027945,4]
[366707975,1750415594436,-1639.8,0.00027945,4]
[366707976,1750415594447,-641.47,0.00027945,4]
[366707977,1750415594457,-1452.7,0.00027945,4]
[366707978,1750415594466,-490.0,0.00027945,4]
[366707979,1750415594476,-490.0,0.00027945,4]
[366707980,1750415594486,-766.28,0.00027945,4]
[366707981,1750415594496,-1528.81,0.00027945,4]
[366707982,1750415594506,-2442.89,0.00027945,4]
[366707983,1750415594516,-490.0,0.00027945,4]
[366707984,1750415594526,-490.0,0.00027945,4]
[366707985,1750415594535,-974.85,0.00027945,4]
[366707986,1750415594545,-525.8,0.00027945,4]
[366707987,1750415594555,-655.26,0.00027945,4]
[366707988,1750415594566,-490.0,0.00027945,4]
[366707989,1750415594576,-490.0,0.00027945,4]
[366707990,1750415594586,-6155.02,0.00027945,4]
[366707991,1750415594596,-1546.64,0.00027945,4]
[366707992,1750415594607,-490.0,0.00027945,4]
[366707993,1750415594618,-952.09,0.00027945,4]
[366707994,1750415594630,-2556.54,0.00027945,4]
[366707995,1750415594642,-490.0,0.00027945,4]
[366707996,1750415594651,-490.0,0.00027945,4]
[366707997,1750415594661,-1078.67,0.00027945,4]
[366707998,1750415594671,-1698.38,0.00027945,4]